[Event "Titled Tuesday Blitz May 9 Early 2023"]
[White "Boldoo, Erdenepurev"]
[Black "Wagner, Dennis"]
[WhiteFideId "4901037"]
[BlackFideId "24650684"]
[WhiteElo "2299"]
[BlackElo "2478"]
[Result "0-1"]
[Round "04"]
[TimeControl "180+2"]
[Date "2023.05.09"]
[WhiteClock "0:00:05"]
[BlackClock "0:00:05"]

1. d4 {[%clk 0:03:00]}  Nf6 {[%clk 0:02:59]} 2. c4 {[%clk 0:03:00]}  e6 {[%clk 0:03:00]} 3. Nf3 {[%clk 0:03:01]}  d5 {[%clk 0:03:00]} 4. Nc3 {[%clk 0:03:02]}  Nbd7 {[%clk 0:02:58]} 5. e3 {[%clk 0:02:48]}  b6 {[%clk 0:02:50]} 6. Be2 {[%clk 0:02:46]}  Bb7 {[%clk 0:02:50]} 7. O-O {[%clk 0:02:41]}  a6 {[%clk 0:02:50]} 8. b3 {[%clk 0:02:41]}  Bd6 {[%clk 0:02:49]} 9. Bb2 {[%clk 0:02:42]}  O-O {[%clk 0:02:48]} 10. Qc2 {[%clk 0:02:35]}  c5 {[%clk 0:02:46]} 11. cxd5 {[%clk 0:02:27]}  exd5 {[%clk 0:02:45]} 12. Rfd1 {[%clk 0:02:25]}  Rc8 {[%clk 0:02:44]} 13. dxc5 {[%clk 0:02:25]}  bxc5 {[%clk 0:02:45]} 14. Rac1 {[%clk 0:02:25]}  Qe7 {[%clk 0:02:43]} 15. Qf5 {[%clk 0:02:17]}  Rfe8 {[%clk 0:02:37]} 16. Bd3 {[%clk 0:02:01]}  g6 {[%clk 0:02:32]} 17. Qh3 {[%clk 0:02:00]}  Ne4 {[%clk 0:02:17]} 18. Bxe4 {[%clk 0:01:44]}  dxe4 {[%clk 0:02:16]} 19. Ng5 {[%clk 0:01:44]}  Nf8 {[%clk 0:01:42]} 20. Rxd6 {[%clk 0:01:17]}  Qxd6 {[%clk 0:01:27]} 21. Ncxe4 {[%clk 0:01:16]}  Bxe4 {[%clk 0:01:07]} 22. Nxe4 {[%clk 0:01:17]}  Rxe4 {[%clk 0:01:07]} 23. Qxc8 {[%clk 0:01:18]}  Qd2 {[%clk 0:01:07]} 24. Ba3 {[%clk 0:01:07]}  Kg7 {[%clk 0:00:41]} 25. Qxc5 {[%clk 0:01:03]}  Re8 {[%clk 0:00:32]} 26. Qc3+ {[%clk 0:00:44]}  Qxc3 {[%clk 0:00:31]} 27. Rxc3 {[%clk 0:00:45]}  Ne6 {[%clk 0:00:31]} 28. Kf1 {[%clk 0:00:44]}  a5 {[%clk 0:00:29]} 29. Bb2 {[%clk 0:00:44]}  Kf8 {[%clk 0:00:28]} 30. h4 {[%clk 0:00:44]}  Rb8 {[%clk 0:00:24]} 31. Ke2 {[%clk 0:00:42]}  a4 {[%clk 0:00:23]} 32. Ba3+ {[%clk 0:00:42]}  Ke8 {[%clk 0:00:24]} 33. bxa4 {[%clk 0:00:42]}  Ra8 {[%clk 0:00:24]} 34. Rc4 {[%clk 0:00:42]}  h5 {[%clk 0:00:24]} 35. Bb2 {[%clk 0:00:32]}  Kd7 {[%clk 0:00:23]} 36. Bd4 {[%clk 0:00:29]}  Nd8 {[%clk 0:00:20]} 37. Rb4 {[%clk 0:00:28]}  Nc6 {[%clk 0:00:19]} 38. Rc4 {[%clk 0:00:21]}  Kd6 {[%clk 0:00:15]} 39. Kd3 {[%clk 0:00:18]}  Na5 {[%clk 0:00:12]} 40. Rb4 {[%clk 0:00:09]}  Nc6 {[%clk 0:00:12]} 41. Rb7 {[%clk 0:00:09]}  Ke6 {[%clk 0:00:08]} 42. Rb6 {[%clk 0:00:06]}  Kd7 {[%clk 0:00:09]} 43. Bc5 {[%clk 0:00:04]}  Rxa4 {[%clk 0:00:08]} 44. a3 {[%clk 0:00:04]}  Ra5 {[%clk 0:00:08]} 45. Bb4 {[%clk 0:00:04]}  Rd5+ {[%clk 0:00:07]} 46. Ke2 {[%clk 0:00:04]}  Re5 {[%clk 0:00:04]} 47. Rb7+ {[%clk 0:00:04]}  Ke6 {[%clk 0:00:04]} 48. Rc7 {[%clk 0:00:03]}  Nxb4 {[%clk 0:00:04]} 49. axb4 {[%clk 0:00:03]}  Re4 {[%clk 0:00:05]} 50. Rb7 {[%clk 0:00:03]}  Rxh4 {[%clk 0:00:05]} 51. g3 {[%clk 0:00:02]}  Rh1 {[%clk 0:00:05]} 52. Rb6+ {[%clk 0:00:03]}  Ke7 {[%clk 0:00:05]} 53. Kf3 {[%clk 0:00:04]}  Rb1 {[%clk 0:00:05]} 54. Kf4 {[%clk 0:00:04]}  Rb2 {[%clk 0:00:06]} 55. f3 {[%clk 0:00:05]}  f6 {[%clk 0:00:06]} 56. Rb7+ {[%clk 0:00:05]}  Ke6 {[%clk 0:00:06]} 57. Rb6+ {[%clk 0:00:06]}  Ke7 {[%clk 0:00:07]} 58. g4 {[%clk 0:00:06]}  h4 {[%clk 0:00:06]} 59. g5 {[%clk 0:00:06]}  fxg5+ {[%clk 0:00:06]} 60. Kxg5 {[%clk 0:00:07]}  h3 {[%clk 0:00:07]} 61. Rxg6 {[%clk 0:00:06]}  Rg2+ {[%clk 0:00:06]} 62. Kh4 {[%clk 0:00:04]}  Rxg6 {[%clk 0:00:05]} 63. Kxh3 {[%clk 0:00:05]} 0-1


[Site "https://www.chess.com"]

[Event "Titled Tuesday Blitz May 9 Early 2023"]
[White "Kvaloy, Aksel Bu"]
[Black "Goffredo_Fofi"]
[WhiteFideId "1528815"]
[WhiteElo "2242"]
[BlackElo "2543"]
[Result "1-0"]
[Round "04"]
[TimeControl "180+2"]
[Date "2023.05.09"]
[WhiteClock "0:00:08"]
[BlackClock "0:00:00"]

1. e4 {[%clk 0:03:00]}  Nf6 {[%clk 0:03:00]} 2. e5 {[%clk 0:03:00]}  Nd5 {[%clk 0:03:00]} 3. c4 {[%clk 0:03:00]}  Nb6 {[%clk 0:03:00]} 4. d4 {[%clk 0:03:01]}  d6 {[%clk 0:03:01]} 5. exd6 {[%clk 0:02:58]}  cxd6 {[%clk 0:03:02]} 6. a4 {[%clk 0:02:59]}  a5 {[%clk 0:03:00]} 7. Nc3 {[%clk 0:02:59]}  Nc6 {[%clk 0:03:00]} 8. Nf3 {[%clk 0:02:48]}  g6 {[%clk 0:02:59]} 9. Bg5 {[%clk 0:02:37]}  h6 {[%clk 0:02:54]} 10. Bh4 {[%clk 0:02:36]}  Bg7 {[%clk 0:02:54]} 11. c5 {[%clk 0:02:35]}  dxc5 {[%clk 0:02:42]} 12. dxc5 {[%clk 0:02:32]}  Nd7 {[%clk 0:02:30]} 13. Bb5 {[%clk 0:02:20]}  O-O {[%clk 0:01:58]} 14. O-O {[%clk 0:02:16]}  g5 {[%clk 0:01:55]} 15. Bg3 {[%clk 0:02:12]}  Nxc5 {[%clk 0:01:53]} 16. Qe2 {[%clk 0:01:58]}  Be6 {[%clk 0:01:08]} 17. Rad1 {[%clk 0:01:47]}  Qb6 {[%clk 0:01:06]} 18. h4 {[%clk 0:01:30]}  g4 {[%clk 0:00:59]} 19. Ne5 {[%clk 0:01:26]}  Nxe5 {[%clk 0:00:44]} 20. Bxe5 {[%clk 0:01:27]}  Rad8 {[%clk 0:00:44]} 21. Bxg7 {[%clk 0:01:23]}  Kxg7 {[%clk 0:00:42]} 22. Qe3 {[%clk 0:01:20]}  Qc7 {[%clk 0:00:33]} 23. Rc1 {[%clk 0:01:15]}  Nb3 {[%clk 0:00:28]} 24. Nd5 {[%clk 0:01:07]}  Qd6 {[%clk 0:00:18]} 25. Qxb3 {[%clk 0:01:02]}  Bxd5 {[%clk 0:00:18]} 26. Qc3+ {[%clk 0:01:02]}  Qf6 {[%clk 0:00:17]} 27. Qg3 {[%clk 0:01:00]}  Be6 {[%clk 0:00:18]} 28. f3 {[%clk 0:00:53]}  Qd4+ {[%clk 0:00:15]} 29. Kh1 {[%clk 0:00:49]}  h5 {[%clk 0:00:16]} 30. fxg4 {[%clk 0:00:48]}  hxg4 {[%clk 0:00:16]} 31. Rf4 {[%clk 0:00:43]}  Qd2 {[%clk 0:00:17]} 32. Rc5 {[%clk 0:00:28]}  Rd4 {[%clk 0:00:14]} 33. Rg5+ {[%clk 0:00:24]}  Kh6 {[%clk 0:00:14]} 34. Rf1 {[%clk 0:00:11]}  Rc8 {[%clk 0:00:10]} 35. Qe5 {[%clk 0:00:12]}  f6 {[%clk 0:00:00]} 36. Rxf6+ {[%clk 0:00:08]} 1-0


[Site "https://www.chess.com"]

[Event "Titled Tuesday Blitz May 9 Early 2023"]
[White "Hasangatin, Ramil"]
[Black "Baghdasaryan, Vahe"]
[WhiteFideId "4122160"]
[BlackFideId "13303139"]
[WhiteElo "2279"]
[BlackElo "2216"]
[Result "1-0"]
[Round "04"]
[TimeControl "180+2"]
[Date "2023.05.09"]
[WhiteClock "0:01:12"]
[BlackClock "0:00:16"]

1. e4 {[%clk 0:03:00]}  c5 {[%clk 0:02:56]} 2. Nf3 {[%clk 0:03:01]}  Nc6 {[%clk 0:02:51]} 3. Bb5 {[%clk 0:03:00]}  d6 {[%clk 0:02:46]} 4. d4 {[%clk 0:02:59]}  cxd4 {[%clk 0:02:45]} 5. Qxd4 {[%clk 0:03:00]}  Bd7 {[%clk 0:02:45]} 6. Bxc6 {[%clk 0:03:00]}  Bxc6 {[%clk 0:02:44]} 7. Nc3 {[%clk 0:03:00]}  Nf6 {[%clk 0:02:43]} 8. Bg5 {[%clk 0:03:00]}  e6 {[%clk 0:02:29]} 9. O-O-O {[%clk 0:02:57]}  Be7 {[%clk 0:02:28]} 10. Rhe1 {[%clk 0:02:56]}  O-O {[%clk 0:02:25]} 11. Qd2 {[%clk 0:02:56]}  Qa5 {[%clk 0:02:01]} 12. Nd4 {[%clk 0:02:55]}  Rfc8 {[%clk 0:01:39]} 13. f3 {[%clk 0:02:54]}  Bxe4 {[%clk 0:00:58]} 14. Bxf6 {[%clk 0:02:17]}  Bxf6 {[%clk 0:00:56]} 15. Nxe4 {[%clk 0:02:13]}  Qxa2 {[%clk 0:00:55]} 16. Nxf6+ {[%clk 0:02:08]}  gxf6 {[%clk 0:00:56]} 17. Qb4 {[%clk 0:02:00]}  a5 {[%clk 0:00:48]} 18. Qb3 {[%clk 0:01:55]}  Qxb3 {[%clk 0:00:38]} 19. Nxb3 {[%clk 0:01:56]}  d5 {[%clk 0:00:37]} 20. Kb1 {[%clk 0:01:50]}  b5 {[%clk 0:00:37]} 21. Rd4 {[%clk 0:01:45]}  a4 {[%clk 0:00:37]} 22. Nc1 {[%clk 0:01:44]}  Rc4 {[%clk 0:00:30]} 23. Rxc4 {[%clk 0:01:42]}  bxc4 {[%clk 0:00:31]} 24. Rd1 {[%clk 0:01:33]}  Kf8 {[%clk 0:00:30]} 25. Ka2 {[%clk 0:01:31]}  Ke7 {[%clk 0:00:30]} 26. Ne2 {[%clk 0:01:31]}  Kd6 {[%clk 0:00:29]} 27. Nc3 {[%clk 0:01:31]}  Kc5 {[%clk 0:00:29]} 28. Ka3 {[%clk 0:01:31]}  d4 {[%clk 0:00:24]} 29. Ne4+ {[%clk 0:01:20]}  Kd5 {[%clk 0:00:22]} 30. Nxf6+ {[%clk 0:01:20]}  Ke5 {[%clk 0:00:21]} 31. Nd7+ {[%clk 0:01:18]}  Kf4 {[%clk 0:00:17]} 32. Rxd4+ {[%clk 0:01:14]}  Ke3 {[%clk 0:00:16]} 33. Rxc4 {[%clk 0:01:12]} 1-0


[Site "https://www.chess.com"]

[Event "Titled Tuesday Blitz May 9 Early 2023"]
[White "Kokoszczynski, Jan"]
[Black "Goltsev, Dmitry"]
[WhiteFideId "1174460"]
[BlackFideId "24176710"]
[WhiteElo "2139"]
[BlackElo "2356"]
[Result "1/2-1/2"]
[Round "04"]
[TimeControl "180+2"]
[Date "2023.05.09"]
[WhiteClock "0:00:14"]
[BlackClock "0:00:48"]

1. d4 {[%clk 0:03:00]}  Nf6 {[%clk 0:02:59]} 2. c4 {[%clk 0:03:01]}  e6 {[%clk 0:02:59]} 3. Nc3 {[%clk 0:03:01]}  d5 {[%clk 0:02:59]} 4. cxd5 {[%clk 0:02:59]}  exd5 {[%clk 0:03:00]} 5. Bg5 {[%clk 0:02:59]}  c6 {[%clk 0:03:00]} 6. e3 {[%clk 0:03:00]}  Bf5 {[%clk 0:03:00]} 7. Qf3 {[%clk 0:02:59]}  Bg6 {[%clk 0:03:00]} 8. Bxf6 {[%clk 0:02:59]}  Qxf6 {[%clk 0:03:00]} 9. Qxf6 {[%clk 0:03:00]}  gxf6 {[%clk 0:03:01]} 10. Nf3 {[%clk 0:02:55]}  Nd7 {[%clk 0:02:56]} 11. Nh4 {[%clk 0:02:55]}  Bb4 {[%clk 0:02:55]} 12. Rc1 {[%clk 0:02:51]}  Nf8 {[%clk 0:02:44]} 13. g3 {[%clk 0:02:49]}  h5 {[%clk 0:02:36]} 14. Bh3 {[%clk 0:02:42]}  Nh7 {[%clk 0:02:35]} 15. O-O {[%clk 0:02:39]}  Ng5 {[%clk 0:02:34]} 16. Bg2 {[%clk 0:02:39]}  O-O-O {[%clk 0:02:25]} 17. a3 {[%clk 0:02:37]}  Ba5 {[%clk 0:02:22]} 18. Nxd5 {[%clk 0:02:33]}  Rd6 {[%clk 0:02:12]} 19. Ne7+ {[%clk 0:02:26]}  Kb8 {[%clk 0:02:07]} 20. Nhxg6 {[%clk 0:02:26]}  fxg6 {[%clk 0:02:07]} 21. Nxg6 {[%clk 0:02:27]}  Rh7 {[%clk 0:02:06]} 22. h4 {[%clk 0:02:21]}  Ne6 {[%clk 0:02:04]} 23. Nf4 {[%clk 0:02:12]}  Nxf4 {[%clk 0:02:02]} 24. gxf4 {[%clk 0:02:13]}  Rg7 {[%clk 0:02:02]} 25. Kh2 {[%clk 0:02:13]}  f5 {[%clk 0:01:52]} 26. Bf3 {[%clk 0:02:09]}  Bd8 {[%clk 0:01:51]} 27. Rg1 {[%clk 0:01:36]}  Rxg1 {[%clk 0:01:44]} 28. Rxg1 {[%clk 0:01:34]}  Bxh4 {[%clk 0:01:42]} 29. Rg8+ {[%clk 0:01:35]}  Kc7 {[%clk 0:01:31]} 30. Kg2 {[%clk 0:01:35]}  c5 {[%clk 0:01:30]} 31. Rg7+ {[%clk 0:01:27]}  Kd8 {[%clk 0:01:27]} 32. d5 {[%clk 0:01:18]}  Bf6 {[%clk 0:01:26]} 33. Rxb7 {[%clk 0:01:15]}  c4 {[%clk 0:01:24]} 34. e4 {[%clk 0:00:52]}  fxe4 {[%clk 0:01:21]} 35. Bxe4 {[%clk 0:00:52]}  Rb6 {[%clk 0:01:14]} 36. Rxa7 {[%clk 0:00:26]}  Rxb2 {[%clk 0:01:10]} 37. Rf7 {[%clk 0:00:22]}  Bd4 {[%clk 0:01:10]} 38. d6 {[%clk 0:00:18]}  Bxf2 {[%clk 0:01:01]} 39. Bc6 {[%clk 0:00:12]}  Bc5+ {[%clk 0:00:50]} 40. Kf3 {[%clk 0:00:12]}  Bxd6 {[%clk 0:00:47]} 41. Rd7+ {[%clk 0:00:12]}  Kc8 {[%clk 0:00:48]} 42. Rxd6 {[%clk 0:00:13]}  Kc7 {[%clk 0:00:48]} 43. Rh6 {[%clk 0:00:13]}  Rb6 {[%clk 0:00:45]} 44. Rxh5 {[%clk 0:00:04]}  Rxc6 {[%clk 0:00:43]} 45. Ke4 {[%clk 0:00:04]}  c3 {[%clk 0:00:43]} 46. Rh1 {[%clk 0:00:05]}  c2 {[%clk 0:00:40]} 47. Rc1 {[%clk 0:00:05]}  Rc4+ {[%clk 0:00:40]} 48. Kd3 {[%clk 0:00:03]}  Rxf4 {[%clk 0:00:40]} 49. Rxc2+ {[%clk 0:00:04]}  Kb6 {[%clk 0:00:41]} 50. Kc3 {[%clk 0:00:03]}  Ka5 {[%clk 0:00:40]} 51. Kb2 {[%clk 0:00:04]}  Rf3 {[%clk 0:00:40]} 52. Rc3 {[%clk 0:00:04]}  Rxc3 {[%clk 0:00:40]} 53. Kxc3 {[%clk 0:00:05]}  Ka4 {[%clk 0:00:40]} 54. Kb2 {[%clk 0:00:06]}  Ka5 {[%clk 0:00:41]} 55. Kb3 {[%clk 0:00:07]}  Kb5 {[%clk 0:00:41]} 56. a4+ {[%clk 0:00:07]}  Ka5 {[%clk 0:00:42]} 57. Ka3 {[%clk 0:00:08]}  Ka6 {[%clk 0:00:43]} 58. Kb4 {[%clk 0:00:09]}  Ka7 {[%clk 0:00:44]} 59. a5 {[%clk 0:00:10]}  Ka8 {[%clk 0:00:45]} 60. Kb5 {[%clk 0:00:11]}  Kb8 {[%clk 0:00:45]} 61. Kb6 {[%clk 0:00:11]}  Ka8 {[%clk 0:00:46]} 62. a6 {[%clk 0:00:12]}  Kb8 {[%clk 0:00:47]} 63. a7+ {[%clk 0:00:13]}  Ka8 {[%clk 0:00:48]} 64. Ka6 {[%clk 0:00:14]} 1/2-1/2


[Site "https://www.chess.com"]

[Event "Titled Tuesday Blitz May 9 Early 2023"]
[White "Orozbaev, Eldiar"]
[Black "Nguyen, Hong Anh"]
[WhiteFideId "13802240"]
[BlackFideId "12406732"]
[WhiteElo "2201"]
[BlackElo "2054"]
[Result "1-0"]
[Round "04"]
[TimeControl "180+2"]
[Date "2023.05.09"]
[WhiteClock "0:00:49"]
[BlackClock "0:00:19"]

1. e4 {[%clk 0:02:58]}  c5 {[%clk 0:02:58]} 2. c3 {[%clk 0:02:57]}  Nf6 {[%clk 0:02:57]} 3. e5 {[%clk 0:02:57]}  Nd5 {[%clk 0:02:56]} 4. d4 {[%clk 0:02:58]}  d6 {[%clk 0:02:53]} 5. Nf3 {[%clk 0:02:58]}  g6 {[%clk 0:02:49]} 6. exd6 {[%clk 0:02:47]}  exd6 {[%clk 0:02:48]} 7. dxc5 {[%clk 0:02:47]}  dxc5 {[%clk 0:02:48]} 8. Bb5+ {[%clk 0:02:48]}  Nc6 {[%clk 0:02:47]} 9. O-O {[%clk 0:02:49]}  Bg7 {[%clk 0:02:47]} 10. Bg5 {[%clk 0:02:49]}  Qd7 {[%clk 0:02:21]} 11. Re1+ {[%clk 0:02:47]}  Kf8 {[%clk 0:02:13]} 12. Na3 {[%clk 0:02:45]}  h6 {[%clk 0:02:11]} 13. Bh4 {[%clk 0:02:43]}  a6 {[%clk 0:02:08]} 14. Ne5 {[%clk 0:02:40]}  Bxe5 {[%clk 0:02:04]} 15. Rxe5 {[%clk 0:02:41]}  axb5 {[%clk 0:01:59]} 16. Rxd5 {[%clk 0:02:41]}  Qe6 {[%clk 0:01:54]} 17. Nxb5 {[%clk 0:02:41]}  Kg7 {[%clk 0:01:50]} 18. Nc7 {[%clk 0:02:41]}  Qe4 {[%clk 0:01:44]} 19. Nxa8 {[%clk 0:02:28]}  Qxh4 {[%clk 0:01:42]} 20. Nb6 {[%clk 0:02:28]}  Be6 {[%clk 0:01:39]} 21. Rd6 {[%clk 0:02:29]}  Ne5 {[%clk 0:01:30]} 22. Qe2 {[%clk 0:02:28]}  Ng4 {[%clk 0:01:28]} 23. h3 {[%clk 0:02:28]}  Nf6 {[%clk 0:01:28]} 24. Rad1 {[%clk 0:02:26]}  Re8 {[%clk 0:01:25]} 25. Qf3 {[%clk 0:02:22]}  Re7 {[%clk 0:01:18]} 26. Re1 {[%clk 0:02:10]}  Bg4 {[%clk 0:01:07]} 27. Rxe7 {[%clk 0:01:56]}  Bxf3 {[%clk 0:01:05]} 28. gxf3 {[%clk 0:01:49]}  Qxh3 {[%clk 0:00:53]} 29. Nd7 {[%clk 0:01:48]}  Ng8 {[%clk 0:00:44]} 30. Re3 {[%clk 0:01:38]}  h5 {[%clk 0:00:37]} 31. Nxc5 {[%clk 0:01:36]}  Qf5 {[%clk 0:00:36]} 32. Ne4 {[%clk 0:01:36]}  h4 {[%clk 0:00:35]} 33. c4 {[%clk 0:01:32]}  Qf4 {[%clk 0:00:28]} 34. c5 {[%clk 0:01:27]}  Ne7 {[%clk 0:00:28]} 35. Rf6 {[%clk 0:01:14]}  Qc7 {[%clk 0:00:24]} 36. Nd6 {[%clk 0:01:08]}  Qxc5 {[%clk 0:00:20]} 37. Rxf7+ {[%clk 0:01:08]}  Kh6 {[%clk 0:00:19]} 38. Rexe7 {[%clk 0:01:01]}  Qxd6 {[%clk 0:00:19]} 39. f4 {[%clk 0:00:50]}  Qd1+ {[%clk 0:00:19]} 40. Kh2 {[%clk 0:00:49]}  Qf3 {[%clk 0:00:19]} 41. Rh7# {[%clk 0:00:49]} 1-0


[Site "https://www.chess.com"]

[Event "Titled Tuesday Blitz May 9 Early 2023"]
[White "Horak, Martin"]
[Black "Rakotomaharo, Fy Antenaina"]
[WhiteFideId "367095"]
[BlackFideId "13100050"]
[WhiteElo "2091"]
[BlackElo "2427"]
[Result "0-1"]
[Round "04"]
[TimeControl "180+2"]
[Date "2023.05.09"]
[WhiteClock "0:00:00"]
[BlackClock "0:00:42"]

1. e4 {[%clk 0:03:00]}  Nc6 {[%clk 0:03:00]} 2. Nc3 {[%clk 0:03:00]}  e5 {[%clk 0:03:00]} 3. Bc4 {[%clk 0:02:59]}  Nf6 {[%clk 0:02:58]} 4. d3 {[%clk 0:02:59]}  Na5 {[%clk 0:02:58]} 5. Qf3 {[%clk 0:03:00]}  Bc5 {[%clk 0:02:55]} 6. Nge2 {[%clk 0:02:58]}  O-O {[%clk 0:02:54]} 7. O-O {[%clk 0:02:54]}  h6 {[%clk 0:02:53]} 8. Ng3 {[%clk 0:02:49]}  c6 {[%clk 0:02:42]} 9. Nf5 {[%clk 0:02:31]}  d5 {[%clk 0:02:39]} 10. Bb3 {[%clk 0:02:22]}  Be6 {[%clk 0:02:19]} 11. Re1 {[%clk 0:02:10]}  Nxb3 {[%clk 0:02:07]} 12. axb3 {[%clk 0:02:10]}  dxe4 {[%clk 0:01:53]} 13. dxe4 {[%clk 0:02:11]}  Kh7 {[%clk 0:01:52]} 14. Be3 {[%clk 0:01:49]}  Bxe3 {[%clk 0:01:51]} 15. Rxe3 {[%clk 0:01:50]}  Qc7 {[%clk 0:01:36]} 16. h3 {[%clk 0:01:16]}  b5 {[%clk 0:01:27]} 17. Ne2 {[%clk 0:01:13]}  Rad8 {[%clk 0:01:25]} 18. Neg3 {[%clk 0:01:08]}  Rd7 {[%clk 0:01:20]} 19. Rae1 {[%clk 0:01:02]}  Rfd8 {[%clk 0:01:20]} 20. Nh5 {[%clk 0:00:54]}  Nxh5 {[%clk 0:01:20]} 21. Qxh5 {[%clk 0:00:55]}  Rd2 {[%clk 0:01:08]} 22. Rg3 {[%clk 0:00:50]}  Bxf5 {[%clk 0:01:09]} 23. exf5 {[%clk 0:00:42]}  Qe7 {[%clk 0:01:06]} 24. Qg4 {[%clk 0:00:31]}  Qf6 {[%clk 0:01:05]} 25. Rc3 {[%clk 0:00:24]}  R8d4 {[%clk 0:01:01]} 26. Qf3 {[%clk 0:00:25]}  Rf4 {[%clk 0:01:00]} 27. Qxc6 {[%clk 0:00:11]}  Qxc6 {[%clk 0:01:00]} 28. Rxc6 {[%clk 0:00:12]}  Rfxf2 {[%clk 0:01:01]} 29. Rxe5 {[%clk 0:00:11]}  Rxg2+ {[%clk 0:01:01]} 30. Kf1 {[%clk 0:00:12]}  Rh2 {[%clk 0:00:57]} 31. Kg1 {[%clk 0:00:10]}  Rxh3 {[%clk 0:00:48]} 32. Rxb5 {[%clk 0:00:08]}  Rg3+ {[%clk 0:00:47]} 33. Kf1 {[%clk 0:00:08]}  h5 {[%clk 0:00:45]} 34. Rc7 {[%clk 0:00:00]}  f6 {[%clk 0:00:42]} 0-1


[Site "https://www.chess.com"]

[Event "Titled Tuesday Blitz May 9 Early 2023"]
[White "Harshavardhan G B"]
[Black "Rodchenkov, Sergey D."]
[WhiteFideId "25059009"]
[BlackFideId "4168712"]
[WhiteElo "2323"]
[BlackElo "2277"]
[Result "1-0"]
[Round "04"]
[TimeControl "180+2"]
[Date "2023.05.09"]
[WhiteClock "0:01:43"]
[BlackClock "0:00:16"]

1. e4 {[%clk 0:03:00]}  c5 {[%clk 0:03:00]} 2. Nc3 {[%clk 0:02:59]}  d6 {[%clk 0:03:00]} 3. d4 {[%clk 0:02:59]}  cxd4 {[%clk 0:03:01]} 4. Qxd4 {[%clk 0:02:59]}  Nf6 {[%clk 0:02:58]} 5. b3 {[%clk 0:02:57]}  Nc6 {[%clk 0:02:54]} 6. Qd2 {[%clk 0:02:57]}  g6 {[%clk 0:02:49]} 7. Bb2 {[%clk 0:02:57]}  Bg7 {[%clk 0:02:49]} 8. O-O-O {[%clk 0:02:58]}  O-O {[%clk 0:02:49]} 9. f4 {[%clk 0:02:58]}  a5 {[%clk 0:02:42]} 10. a4 {[%clk 0:02:57]}  Bg4 {[%clk 0:02:37]} 11. Be2 {[%clk 0:02:56]}  Rc8 {[%clk 0:02:37]} 12. Kb1 {[%clk 0:02:55]}  Nb4 {[%clk 0:02:33]} 13. Bxg4 {[%clk 0:02:51]}  Nxg4 {[%clk 0:02:34]} 14. h3 {[%clk 0:02:51]}  Nf2 {[%clk 0:02:17]} 15. Qxf2 {[%clk 0:02:49]}  Bxc3 {[%clk 0:02:17]} 16. Bxc3 {[%clk 0:02:49]}  Rxc3 {[%clk 0:02:18]} 17. Rd2 {[%clk 0:02:50]}  Qc7 {[%clk 0:02:10]} 18. Nf3 {[%clk 0:02:37]}  Rc8 {[%clk 0:01:45]} 19. Nd4 {[%clk 0:02:37]}  Qc5 {[%clk 0:01:45]} 20. Rf1 {[%clk 0:02:29]}  Nc6 {[%clk 0:00:49]} 21. Nb5 {[%clk 0:02:19]}  Qxf2 {[%clk 0:00:48]} 22. Rfxf2 {[%clk 0:02:20]}  Re3 {[%clk 0:00:45]} 23. Rde2 {[%clk 0:02:19]}  Rg3 {[%clk 0:00:41]} 24. Kb2 {[%clk 0:02:15]}  Nb4 {[%clk 0:00:33]} 25. Rd2 {[%clk 0:02:06]}  Kg7 {[%clk 0:00:33]} 26. Rfe2 {[%clk 0:02:01]}  h5 {[%clk 0:00:29]} 27. e5 {[%clk 0:02:01]}  dxe5 {[%clk 0:00:29]} 28. fxe5 {[%clk 0:02:02]}  e6 {[%clk 0:00:24]} 29. Rd7 {[%clk 0:02:01]}  Nd5 {[%clk 0:00:24]} 30. Rf2 {[%clk 0:01:57]}  Kh6 {[%clk 0:00:25]} 31. Nd6 {[%clk 0:01:54]}  Rf8 {[%clk 0:00:19]} 32. Nxf7+ {[%clk 0:01:53]}  Rxf7 {[%clk 0:00:20]} 33. Rdxf7 {[%clk 0:01:52]}  Ne3 {[%clk 0:00:16]} 34. R2f3 {[%clk 0:01:43]} 1-0


[Site "https://www.chess.com"]

[Event "Titled Tuesday Blitz May 9 Early 2023"]
[White "Petrovic, Aleksa"]
[Black "Zhu, Jiner"]
[WhiteFideId "967629"]
[BlackFideId "8608059"]
[WhiteElo "2309"]
[BlackElo "2384"]
[Result "0-1"]
[Round "04"]
[TimeControl "180+2"]
[Date "2023.05.09"]
[WhiteClock "0:00:02"]
[BlackClock "0:00:18"]

1. e4 {[%clk 0:03:00]}  e5 {[%clk 0:02:57]} 2. Nf3 {[%clk 0:03:00]}  Nc6 {[%clk 0:02:57]} 3. Bc4 {[%clk 0:03:01]}  Bc5 {[%clk 0:02:56]} 4. c3 {[%clk 0:03:01]}  Nf6 {[%clk 0:02:55]} 5. d4 {[%clk 0:03:01]}  exd4 {[%clk 0:02:55]} 6. cxd4 {[%clk 0:03:02]}  Bb4+ {[%clk 0:02:54]} 7. Nc3 {[%clk 0:03:03]}  Nxe4 {[%clk 0:02:41]} 8. O-O {[%clk 0:03:02]}  Bxc3 {[%clk 0:02:37]} 9. bxc3 {[%clk 0:03:03]}  d5 {[%clk 0:02:35]} 10. Ba3 {[%clk 0:03:04]}  dxc4 {[%clk 0:02:13]} 11. Re1 {[%clk 0:03:03]}  f5 {[%clk 0:02:11]} 12. Nd2 {[%clk 0:03:02]}  Kf7 {[%clk 0:02:03]} 13. Nxe4 {[%clk 0:03:03]}  fxe4 {[%clk 0:02:03]} 14. Rxe4 {[%clk 0:03:04]}  Qf6 {[%clk 0:01:53]} 15. Qe2 {[%clk 0:02:59]}  Bf5 {[%clk 0:01:49]} 16. Qxc4+ {[%clk 0:02:58]}  Kg6 {[%clk 0:01:45]} 17. Rf4 {[%clk 0:02:49]}  Rhe8 {[%clk 0:01:21]} 18. Kh1 {[%clk 0:02:17]}  Qe6 {[%clk 0:01:11]} 19. Qf1 {[%clk 0:02:02]}  Qe2 {[%clk 0:01:09]} 20. Qg1 {[%clk 0:01:41]}  h6 {[%clk 0:01:03]} 21. f3 {[%clk 0:01:26]}  Bd3 {[%clk 0:00:55]} 22. h4 {[%clk 0:01:16]}  Kh7 {[%clk 0:00:54]} 23. Rf7 {[%clk 0:01:07]}  Na5 {[%clk 0:00:42]} 24. d5 {[%clk 0:00:55]}  Qe5 {[%clk 0:00:32]} 25. Qf2 {[%clk 0:00:34]}  Nc4 {[%clk 0:00:30]} 26. Bc5 {[%clk 0:00:30]}  Qxd5 {[%clk 0:00:22]} 27. Rxc7 {[%clk 0:00:29]}  Rac8 {[%clk 0:00:21]} 28. Rxc8 {[%clk 0:00:29]}  Rxc8 {[%clk 0:00:21]} 29. Bxa7 {[%clk 0:00:27]}  Nd6 {[%clk 0:00:21]} 30. Bd4 {[%clk 0:00:26]}  Nf5 {[%clk 0:00:21]} 31. Rd1 {[%clk 0:00:25]}  Qc4 {[%clk 0:00:18]} 32. g4 {[%clk 0:00:20]}  Nxd4 {[%clk 0:00:18]} 33. Qxd4 {[%clk 0:00:21]}  Qxd4 {[%clk 0:00:18]} 34. cxd4 {[%clk 0:00:22]}  Bc4 {[%clk 0:00:18]} 35. Rd2 {[%clk 0:00:19]}  Rd8 {[%clk 0:00:17]} 36. Kg2 {[%clk 0:00:19]}  Ra8 {[%clk 0:00:17]} 37. d5 {[%clk 0:00:09]}  Rxa2 {[%clk 0:00:17]} 38. Rxa2 {[%clk 0:00:09]}  Bxa2 {[%clk 0:00:18]} 39. d6 {[%clk 0:00:10]}  Be6 {[%clk 0:00:18]} 40. Kf2 {[%clk 0:00:10]}  b5 {[%clk 0:00:18]} 41. Ke3 {[%clk 0:00:11]}  Bd7 {[%clk 0:00:18]} 42. Kd4 {[%clk 0:00:10]}  Kg8 {[%clk 0:00:18]} 43. Kc5 {[%clk 0:00:10]}  Kf7 {[%clk 0:00:19]} 44. h5 {[%clk 0:00:06]}  Ke6 {[%clk 0:00:18]} 45. f4 {[%clk 0:00:06]}  Kf6 {[%clk 0:00:18]} 46. g5+ {[%clk 0:00:03]}  hxg5 {[%clk 0:00:18]} 47. fxg5+ {[%clk 0:00:04]}  Kxg5 {[%clk 0:00:18]} 48. Kb6 {[%clk 0:00:03]}  b4 {[%clk 0:00:18]} 49. Kc7 {[%clk 0:00:02]}  Bg4 {[%clk 0:00:18]} 0-1


[Site "https://www.chess.com"]